[Event "13th Dolomiti-Forni di Sopra-A 2022"]
[Site "Forni di Sopra"]
[Date "2022.06.19"]
[Round "9.6"]
[White "Ceres, Dragos"]
[Black "Vezzosi, Paolo"]
[Result "1-0"]
[ECO "B31"]
[WhiteElo "2380"]
[BlackElo "2225"]
[Annotator "TA"]
[PlyCount "71"]
[EventDate "2022.06.13"]
[EventType "swiss"]
[EventCountry "ITA"]
[SourceTitle "playchess.com"]
[Source "ChessBase"]
[SourceQuality "1"]
[TimeControl "40/5400+30:1800+30"]

{[%evp 9,71,18,22,32,39,28,31,0,0,0,0,0,27,0,0,-68,-67,-102,-105,-106,-87,-121,-120,-131,-114,-130,-120,-212,-205,-225,-100,-241,-197,-222,-106,-95,-104,-68,31,28,65,62,56,21,86,98,87,90,85,106,90,100,100,105,102,105,47,52,99,108,94,85,29991,29992]} 1. e4 {[%emt 0:10:34]} c5 {[%emt 0:00:14]} 2. Nf3 {[%emt 0:00:09]} Nc6 {[%emt 0:00:05]} 3. Bb5 {[%emt 0:00:06]} g6 {[%emt 0:00:06]} 4. O-O {[%emt 0:00:20]} Bg7 {[%emt 0:00:07]} 5. Nc3 {[%emt 0:00:26]} Nh6 {[%emt 0:02:41]} 6. d3 {[%emt 0:02:39] B31: Sicilian: 2...Nc6 3 Bb5 g6.} O-O {[%emt 0:01:19]} 7. h3 {[%emt 0:00:33]} d6 {[%emt 0:05:22]} 8. Be3 {[%emt 0:04:06] White is slightly better.} f5 $1 {[%emt 0:04:45]} 9. Qd2 {[%emt 0:05:37]} Nf7 {[%emt 0:03:48]} 10. Bc4 {[%emt 0:02:18]} Na5 {[%emt 0:01:31]} 11. Bxf7+ {[%emt 0:03:38]} (11. Ng5 {feels hotter.} Nxc4 12. dxc4 Qd7 13. Rae1) 11... Rxf7 {[%emt 0:01:34] [#]} 12. e5 $146 {[%emt 0:03:24]} (12. Nd5 $1 $11) ({Predecessor:} 12. Bh6 fxe4 13. Nxe4 Rxf3 14. Bxg7 Kxg7 15. gxf3 Nc6 16. Kg2 Qf8 17. c3 Bd7 18. Qe3 {0-1 (83) Yoo,C (2500)-Deac,B (2679) Chess.com INT 2022}) 12... dxe5 $15 {[%emt 0:15:07]} 13. Bxc5 {[%emt 0:04:25]} b6 {[%emt 0:01:11]} 14. Ba3 {[%emt 0:00:28]} Bb7 {[%emt 0:00:43]} 15. Qe3 {[%emt 0:09:22]} Nc6 {[%emt 0:01:01]} 16. Rac1 {[%emt 0:01:57]} Rc8 {[%emt 0:08:27]} 17. Rfe1 {[%emt 0:01:58]} h6 {[%emt 0:02:01] Prevents Ng5.} 18. h4 {[%emt 0:03:50]} (18. b3 $17) 18... Qd7 $19 {[%emt 0:01:34]} 19. Qd2 {[%emt 0:06:48]} Rff8 {[%emt 0:03:02]} (19... Rd8 $19 {[%cal Oe5e4] Strongly threatening ...e4!} 20. Qe3 Nd4 21. Nxe5 f4 22. Nxd7 fxe3 23. fxe3 Ne6 24. Nxb6 axb6) 20. Re3 {[%emt 0:02:53] Prevents e4.} (20. Qe3 $17) 20... Bf6 {[%emt 0:03:38]} 21. Rce1 {[%emt 0:04:00][%cal Rf3e5]} e4 {[%emt 0:04:16]} (21... f4 $1 $19 {[%cal Rf4e3] is more deadly.} 22. Rxe5 Nxe5 23. Nxe5 Qf5) 22. dxe4 $17 {[%emt 0:01:00]} Qxd2 {[%emt 0:00:37]} 23. Nxd2 {[%emt 0:00:04]} Bxh4 {[%emt 0:01:26]} ({Black should try} 23... Nd4 $15 24. exf5 Nxc2 25. Rxe7 Nxe1 26. Rxb7 Bxc3 27. bxc3 Rf7 28. Rxf7 Kxf7) 24. Nf3 {[%emt 0:01:05]} Bf6 {[%emt 0:37:55]} 25. Nd5 {[%emt 0:02:17]} fxe4 {[%emt 0:00:00]} 26. Rxe4 {[%emt 0:00:19]} Rfd8 {[%emt 0:00:00]} (26... Rf7 $11) 27. Nxf6+ $16 {[%emt 0:03:58]} exf6 {[%emt 0:00:00]} 28. Re6 {[%emt 0:00:09] Inhibits Ne5. White is more active.} Kf7 {[%emt 0:00:00] [#]} 29. Re7+ $1 {[%emt 0:01:30]} Nxe7 {[%emt 0:00:00]} 30. Rxe7+ {[%emt 0:00:04]} Kg8 {[%emt 0:00:00] Threatens to win with ...Bxf3.} 31. Rxb7 {[%emt 0:00:04] Black must now prevent Be7.} Rxc2 {[%emt 0:00:00] [#]} 32. Be7 $1 {[%emt 0:04:37]} Rd1+ {[%emt 0:00:00]} 33. Kh2 {[%emt 0:00:05]} Rxb2 {[%emt 0:00:00]} (33... Rf1 $1 $14 {is superior.}) 34. Bxf6 {[%emt 0:00:11] Ne5 would kill now.} Rxf2 {[%emt 0:00:00]} 35. Kg3 {[%emt 0:01:15]} Rxa2 {[%emt 0:00:00][%mdl 8192] [#]} (35... Rdf1 $16) 36. Ne5 $1 {[%emt 0:00:32] Never resign too early!  Weighted Error Value: White=0.19 (very precise) /Black=0.47} ({Weaker is} 36. Rg7+ Kf8 $11) 1-0

[Event "13th Dolomiti-Forni di Sopra-A 2022"]
[Site "Forni di Sopra"]
[Date "2022.06.19"]
[Round "9.7"]
[White "Kozlovic, Jernej"]
[Black "Cappelletto, Joshuaede"]
[Result "1/2-1/2"]
[ECO "A48"]
[WhiteElo "2005"]
[BlackElo "2276"]
[Annotator "NA RC"]
[PlyCount "81"]
[EventDate "2022.06.13"]
[EventType "swiss"]
[EventCountry "ITA"]
[SourceTitle "playchess.com"]
[Source "ChessBase"]
[SourceQuality "1"]
[TimeControl "40/5400+30:1800+30"]

1. Nf3 {[%emt 0:00:06]} Nf6 {[%emt 0:00:15]} 2. d4 {[%emt 0:00:07]} g6 {[%emt 0:00:06]} 3. Bf4 {[%emt 0:00:04]} Bg7 {[%emt 0:00:16]} 4. e3 {[%emt 0:00:12]} O-O {[%emt 0:00:07]} 5. Nbd2 {[%emt 0:00:36]} d6 {[%emt 0:00:33]} 6. h3 {[%emt 0:00:42]} Nbd7 {[%emt 0:00:07]} 7. c3 {[%emt 0:00:29]} b6 {[%emt 0:00:07]} 8. Bc4 {[%emt 0:04:53]} Bb7 {[%emt 0:00:11]} 9. O-O {[%emt 0:00:47]} Qe8 {[%emt 0:02:50]} 10. Bh2 {[%emt 0:00:51]} e5 {[%emt 0:00:40]} 11. a4 {[%emt 0:01:02]} a6 {[%emt 0:00:06]} 12. Qe2 {[%emt 0:04:35]} Qe7 {[%emt 0:02:53]} 13. b4 {[%emt 0:10:53]} Kh8 {[%emt 0:02:29]} 14. Rfc1 {[%emt 0:19:03]} Nh5 {[%emt 0:05:27]} 15. Rab1 {[%emt 0:07:11]} e4 {[%emt 0:09:22]} 16. Ne1 {[%emt 0:00:22]} f5 {[%emt 0:00:18]} 17. g4 {[%emt 0:04:29]} fxg4 {[%emt 0:14:31]} 18. hxg4 {[%emt 0:00:23]} Nhf6 {[%emt 0:00:09]} 19. Ng2 {[%emt 0:01:32]} g5 {[%emt 0:18:09]} 20. a5 {[%emt 0:07:41]} Ng8 {[%emt 0:02:11]} 21. Ra1 {[%emt 0:05:24]} b5 {[%emt 0:02:43]} 22. Bb3 {[%emt 0:03:51]} Ndf6 {[%emt 0:02:26]} 23. c4 {[%emt 0:01:58]} c6 {[%emt 0:07:05]} 24. c5 {[%emt 0:06:20]} dxc5 {[%emt 0:00:11]} 25. Rxc5 {[%emt 0:00:54]} Nd7 {[%emt 0:00:08]} 26. Rf5 {[%emt 0:02:44]} Nh6 {[%emt 0:02:28]} 27. Rxf8+ {[%emt 0:00:48]} Rxf8 {[%emt 0:00:06]} 28. Rc1 {[%emt 0:00:45]} Qxb4 {[%emt 0:09:14]} 29. Bc2 {[%emt 0:00:39]} Qa3 {[%emt 0:01:22]} 30. Rd1 {[%emt 0:02:03]} Nf6 {[%emt 0:04:36]} 31. Nxe4 {[%emt 0:00:55]} Nxe4 {[%emt 0:00:18]} 32. Bxe4 {[%emt 0:00:09]} Qxa5 {[%emt 0:00:03]} 33. Bd6 {[%emt 0:08:57]} Re8 {[%emt 0:01:00]} 34. Bb1 {[%emt 0:00:39]} Qc3 {[%emt 0:01:11]} 35. f4 {[%emt 0:01:43]} Bc8 {[%emt 0:02:02]} 36. Rd3 {[%emt 0:02:08]} Qc1+ {[%emt 0:00:26]} 37. Rd1 {[%emt 0:00:16]} Qc4 {[%emt 0:00:19]} 38. Qxc4 {[%emt 0:00:46]} bxc4 {[%emt 0:00:06]} 39. fxg5 {[%emt 0:01:02]} Nf7 {[%emt 0:02:22]} 40. Bf4 {[%emt 0:00:34]} Bxg4 {[%emt 0:00:09]} 41. Rc1 {[%emt 0:30:59]} 1/2-1/2

[Event "13th Dolomiti-Forni di Sopra-A 2022"]
[Site "Forni di Sopra"]
[Date "2022.06.19"]
[Round "9.8"]
[White "Harshita Guddanti"]
[Black "Caruso, Augusto"]
[Result "1-0"]
[ECO "C63"]
[WhiteElo "2208"]
[BlackElo "2127"]
[Annotator "NA RC"]
[PlyCount "73"]
[EventDate "2022.06.13"]
[EventType "swiss"]
[EventCountry "ITA"]
[SourceTitle "playchess.com"]
[Source "ChessBase"]
[SourceQuality "1"]
[TimeControl "40/5400+30:1800+30"]

1. e4 {[%emt 0:01:07]} e5 {[%emt 0:00:05]} 2. Nf3 {[%emt 0:00:04]} Nc6 {[%emt 0:00:04]} 3. Bb5 {[%emt 0:00:02]} a6 {[%emt 0:00:20]} 4. Ba4 {[%emt 0:00:04]} f5 {[%emt 0:00:05]} 5. d3 {[%emt 0:09:25]} fxe4 {[%emt 0:00:44]} 6. dxe4 {[%emt 0:00:10]} Nf6 {[%emt 0:00:05]} 7. Nc3 {[%emt 0:08:18]} Bb4 {[%emt 0:03:08]} 8. O-O {[%emt 0:01:27]} Bxc3 {[%emt 0:00:16]} 9. bxc3 {[%emt 0:00:30]} d6 {[%emt 0:00:04]} 10. Qd3 {[%emt 0:11:48]} Bg4 {[%emt 0:04:10]} 11. a3 {[%emt 0:10:31]} O-O {[%emt 0:03:33]} 12. Bb3+ {[%emt 0:03:13]} Kh8 {[%emt 0:04:19]} 13. h3 {[%emt 0:01:01]} Bxf3 {[%emt 0:07:18]} 14. Qxf3 {[%emt 0:00:05]} Nd5 {[%emt 0:01:25]} 15. Qg4 {[%emt 0:05:15]} Nxc3 {[%emt 0:01:28]} 16. Bd2 {[%emt 0:03:58]} Nb5 {[%emt 0:04:16]} 17. c3 {[%emt 0:02:49]} Qf6 {[%emt 0:08:11]} 18. h4 {[%emt 0:04:21]} h6 {[%emt 0:02:18]} 19. a4 {[%emt 0:00:42]} Nba7 {[%emt 0:00:03]} 20. Rae1 {[%emt 0:06:10]} Rae8 {[%emt 0:04:16]} 21. Qh5 {[%emt 0:04:16]} Ne7 {[%emt 0:02:16]} 22. Re3 {[%emt 0:05:50]} Nac6 {[%emt 0:11:21]} 23. Rg3 {[%emt 0:01:19]} Kh7 {[%emt 0:10:28]} 24. f4 {[%emt 0:03:21]} exf4 {[%emt 0:01:44]} 25. Rxf4 {[%emt 0:00:37]} Qe5 {[%emt 0:02:40]} 26. Rg5 {[%emt 0:02:31]} g6 {[%emt 0:03:49]} 27. Rxe5 {[%emt 0:03:18]} gxh5 {[%emt 0:00:01]} 28. Re6 {[%emt 0:01:23]} Ng6 {[%emt 0:07:34]} 29. Rxe8 {[%emt 0:00:18]} Rxe8 {[%emt 0:00:01]} 30. Rf7+ {[%emt 0:00:07]} Kh8 {[%emt 0:00:04]} 31. Bxh6 {[%emt 0:00:49]} Re7 {[%emt 0:02:21]} 32. Rf5 {[%emt 0:03:00]} Rxe4 {[%emt 0:02:31]} 33. Bg5 {[%emt 0:00:09]} Nge7 {[%emt 0:05:03]} 34. Bf6+ {[%emt 0:01:36]} Kh7 {[%emt 0:00:14]} 35. Rg5 {[%emt 0:01:11]} Re2 {[%emt 0:02:07]} 36. Kf1 {[%emt 0:01:09]} Rb2 {[%emt 0:00:02]} 37. Bf7 {[%emt 0:00:17]} 1-0

[Event "13th Dolomiti-Forni di Sopra-A 2022"]
[Site "Forni di Sopra"]
[Date "2022.06.19"]
[Round "9.9"]
[White "Bellia, Fabrizio"]
[Black "Tonel, Giulia"]
[Result "1-0"]
[ECO "B08"]
[WhiteElo "2418"]
[BlackElo "1964"]
[Annotator "TA"]
[PlyCount "69"]
[EventDate "2022.06.13"]
[EventType "swiss"]
[EventCountry "ITA"]
[SourceTitle "playchess.com"]
[Source "ChessBase"]
[SourceQuality "1"]
[TimeControl "40/5400+30:1800+30"]

{[%evp 14,69,40,50,46,45,35,43,60,70,76,42,39,36,51,28,35,34,89,80,100,64,104,115,130,74,64,27,43,41,64,70,66,22,22,14,29,20,41,34,43,47,93,40,66,34,116,7,174,56,740,677,721,716,766,757,29994,29995]} 1. e4 {[%emt 0:00:03]} d6 {[%emt 0:00:13]} 2. d4 {[%emt 0:00:07]} Nf6 {[%emt 0:00:16]} 3. Nc3 {[%emt 0:00:07]} g6 {[%emt 0:00:08]} 4. Nf3 {[%emt 0:00:10]} Bg7 {[%emt 0:00:12]} 5. Be2 {[%emt 0:00:07]} O-O {[%emt 0:00:56]} 6. h3 {[%emt 0:00:11]} c6 {[%emt 0:03:13]} 7. O-O {[%emt 0:00:40]} b5 {[%emt 0:03:36]} 8. e5 {[%emt 0:00:50]} Nfd7 {[%emt 0:03:43][%cal Rd6e5] B08: Pirc Defence: Classical System.} 9. exd6 {[%emt 0:05:10]} exd6 {[%emt 0:00:07]} 10. Ne4 {[%emt 0:02:42][%cal Bc3e4,Be4d2,Bd2b3,Bb3a5][%mdl 32] [#]} Qe7 $146 {[%emt 0:04:46] White is slightly better.} ({Predecessor:} 10... Nf6 11. Nxf6+ Bxf6 12. a4 b4 13. Bh6 Bg7 14. Qd2 a5 15. Bxg7 Kxg7 16. c3 bxc3 17. Qxc3 {½-½ (39) Maylott,P (1975)-Thiel,K (2053) ICCF email 2017}) 11. Bd3 {[%emt 0:00:28]} d5 {[%emt 0:05:17]} 12. Ned2 {[%emt 0:00:40]} Nb6 {[%emt 0:11:23]} 13. Re1 {[%emt 0:02:09]} Be6 {[%emt 0:01:02]} 14. Nb3 {[%emt 0:02:08]} N8d7 {[%emt 0:03:26]} 15. Na5 {[%emt 0:06:44]} Rac8 {[%emt 0:01:29]} (15... Rfc8 $14) 16. b3 {[%emt 0:01:48]} Rfe8 {[%emt 0:06:07]} 17. Bf4 {[%emt 0:04:01] Prevents Qd6.} Nf8 {[%emt 0:01:27]} 18. Qd2 {[%emt 0:02:45]} f6 {[%emt 0:02:16]} 19. a3 {[%emt 0:01:55]} (19. a4 $142 a6 20. Qc3) 19... Qd7 $16 {[%emt 0:02:11]} 20. Bg3 {[%emt 0:02:16]} Bf7 {[%emt 0:07:31]} 21. Rxe8 {[%emt 0:00:26]} Bxe8 {[%emt 0:00:19]} 22. a4 {[%emt 0:00:36]} a6 {[%emt 0:03:40]} 23. Qb4 {[%emt 0:03:50]} Ne6 {[%emt 0:01:40]} 24. Bd6 {[%emt 0:02:23]} Ra8 {[%emt 0:03:00]} 25. Re1 {[%emt 0:09:42]} Nc8 {[%emt 0:02:34]} 26. Bg3 {[%emt 0:00:50]} Bf8 {[%emt 0:00:57]} 27. Qc3 {[%emt 0:03:13]} Kf7 {[%emt 0:01:30]} (27... Kg7 $14 {might be stronger.}) 28. Qd2 {[%emt 0:05:13]} ({Better is} 28. h4 $16) 28... Nd6 {[%emt 0:06:42]} 29. c4 {[%emt 0:01:53]} Ng7 {[%emt 0:06:52] [#]} (29... Kg8 $14) 30. Bh2 {[%emt 0:05:37] White is much more active.} (30. Be5 $1 $16 {[%mdl 512]}) 30... Nb7 $2 {[%emt 0:03:04]} (30... Kg8 $11) 31. c5 {[%emt 0:16:18]} ({White should play} 31. cxd5 $18 cxd5 {[#]} 32. Qf4 $1) 31... Be7 $2 {[%emt 0:02:51][%mdl 8192]} (31... Kg8 $14) 32. Nxb7 {[%emt 0:02:36]} Qxb7 {[%emt 0:00:07]} 33. Bd6 {[%emt 0:00:18]} Bf8 {[%emt 0:08:37]} 34. Qh6 {[%emt 0:00:30]} bxa4 {[%emt 0:02:39]} 35. Qxh7 {[%emt 0:01:15] Weighted Error Value: White=0.25 (precise) /Black=0.55} 1-0

[Event "13th Dolomiti-Forni di Sopra-A 2022"]
[Site "Forni di Sopra"]
[Date "2022.06.19"]
[Round "9.10"]
[White "Lavorgna, Giovanni"]
[Black "Pozzari, Simone"]
[Result "0-1"]
[ECO "A96"]
[WhiteElo "1834"]
[BlackElo "2184"]
[Annotator "NA RC"]
[PlyCount "62"]
[EventDate "2022.06.13"]
[EventType "swiss"]
[EventCountry "ITA"]
[SourceTitle "playchess.com"]
[Source "ChessBase"]
[SourceQuality "1"]
[TimeControl "40/5400+30:1800+30"]

1. d4 {[%emt 0:00:02]} f5 {[%emt 0:00:04]} 2. c4 {[%emt 0:00:15]} e6 {[%emt 0:00:04]} 3. Nf3 {[%emt 0:00:21]} Nf6 {[%emt 0:00:04]} 4. g3 {[%emt 0:00:14]} Be7 {[%emt 0:00:05]} 5. Bg2 {[%emt 0:00:29]} O-O {[%emt 0:00:06]} 6. O-O {[%emt 0:00:24]} d6 {[%emt 0:00:02]} 7. Nc3 {[%emt 0:00:56]} Ne4 {[%emt 0:00:05]} 8. Qc2 {[%emt 0:01:42]} Nxc3 {[%emt 0:00:06]} 9. Qxc3 {[%emt 0:00:45]} Nc6 {[%emt 0:00:05]} 10. Rd1 {[%emt 0:05:20]} a5 {[%emt 0:09:50]} 11. b3 {[%emt 0:01:59]} Bf6 {[%emt 0:00:46]} 12. Bb2 {[%emt 0:00:52]} Qe8 {[%emt 0:00:05]} 13. Qc2 {[%emt 0:03:31]} e5 {[%emt 0:04:00]} 14. dxe5 {[%emt 0:01:10]} dxe5 {[%emt 0:00:11]} 15. e4 {[%emt 0:01:12]} f4 {[%emt 0:01:22]} 16. Rd2 {[%emt 0:13:01]} Qh5 {[%emt 0:15:14]} 17. gxf4 {[%emt 0:11:31]} exf4 {[%emt 0:02:26]} 18. e5 {[%emt 0:06:22]} Be7 {[%emt 0:05:40]} 19. Qe4 {[%emt 0:04:38]} Bf5 {[%emt 0:04:27]} 20. Qd5+ {[%emt 0:02:06]} Kh8 {[%emt 0:00:13]} 21. Rad1 {[%emt 0:03:46]} Rad8 {[%emt 0:20:52]} 22. Qb5 {[%emt 0:00:58]} Rxd2 {[%emt 0:00:32]} 23. Rxd2 {[%emt 0:00:19]} Be4 {[%emt 0:00:12]} 24. Qxb7 {[%emt 0:09:15]} Bxf3 {[%emt 0:02:23]} 25. Bxf3 {[%emt 0:00:32]} Qxf3 {[%emt 0:00:08]} 26. Qxc7 {[%emt 0:00:41]} Qg4+ {[%emt 0:01:17]} 27. Kf1 {[%emt 0:01:12]} f3 {[%emt 0:00:35]} 28. Rd7 {[%emt 0:05:03]} Qg2+ {[%emt 0:00:22]} 29. Ke1 {[%emt 0:00:06]} Qg1+ {[%emt 0:00:03]} 30. Kd2 {[%emt 0:00:07]} Qxf2+ {[%emt 0:00:03]} 31. Kc3 {[%emt 0:00:21]} Bb4+ {[%emt 0:00:25]} 0-1

[Event "13th Dolomiti-Forni di Sopra-A 2022"]
[Site "Forni di Sopra"]
[Date "2022.06.19"]
[Round "9.11"]
[White "Fiorido, Giuseppe"]
[Black "Higatsberger, Michael"]
[Result "1-0"]
[ECO "B51"]
[WhiteElo "2002"]
[BlackElo "2046"]
[Annotator "NA RC"]
[PlyCount "83"]
[EventDate "2022.06.13"]
[EventType "swiss"]
[EventCountry "ITA"]
[SourceTitle "playchess.com"]
[Source "ChessBase"]
[SourceQuality "1"]
[TimeControl "40/5400+30:1800+30"]

1. e4 {[%emt 0:00:23]} c5 {[%emt 0:00:15]} 2. Nf3 {[%emt 0:00:10]} d6 {[%emt 0:00:06]} 3. Bb5+ {[%emt 0:00:09]} Nd7 {[%emt 0:00:06]} 4. Bxd7+ {[%emt 0:01:53]} Qxd7 {[%emt 0:01:24]} 5. O-O {[%emt 0:15:03]} g6 {[%emt 0:03:54]} 6. c4 {[%emt 0:01:17]} Bg7 {[%emt 0:00:39]} 7. Nc3 {[%emt 0:00:30]} Nf6 {[%emt 0:01:02]} 8. Re1 {[%emt 0:00:24]} O-O {[%emt 0:03:33]} 9. d4 {[%emt 0:00:22]} cxd4 {[%emt 0:02:48]} 10. Nxd4 h6 {[%emt 0:16:05]} 11. b3 {[%emt 0:03:04]} Qd8 {[%emt 0:07:40]} 12. Bb2 {[%emt 0:01:09]} Bd7 {[%emt 0:04:17]} 13. Qd2 {[%emt 0:02:31]} Kh7 {[%emt 0:02:06]} 14. Rad1 {[%emt 0:02:13]} Rc8 {[%emt 0:04:48]} 15. Kh1 {[%emt 0:02:30]} h5 {[%emt 0:02:18]} 16. Nd5 {[%emt 0:04:24]} Ng4 {[%emt 0:07:53]} 17. h3 {[%emt 0:12:10]} Bh6 {[%emt 0:07:22]} 18. Qe2 {[%emt 0:01:30]} e6 {[%emt 0:02:00]} 19. Ne3 {[%emt 0:06:55]} Nxe3 {[%emt 0:01:08]} 20. fxe3 {[%emt 0:00:03]} Qa5 21. Qd3 {[%emt 0:09:08]} Bg7 {[%emt 0:05:58]} 22. Bc3 {[%emt 0:01:11]} Qc7 {[%emt 0:01:45]} 23. Ne2 {[%emt 0:03:18]} Bc6 {[%emt 0:02:38]} 24. Bxg7 {[%emt 0:03:21]} Kxg7 {[%emt 0:00:06]} 25. Rf1 {[%emt 0:01:14]} Rcd8 {[%emt 0:02:09]} 26. Nc3 {[%emt 0:02:46]} b6 {[%emt 0:03:03]} 27. Qd4+ {[%emt 0:00:44]} f6 {[%emt 0:02:44]} 28. Rf2 {[%emt 0:00:31]} Qe7 29. Rdf1 {[%emt 0:06:54]} Rf7 {[%emt 0:03:38]} 30. Kg1 {[%emt 0:00:18]} e5 {[%emt 0:01:51]} 31. Qd3 {[%emt 0:00:15]} Qb7 {[%emt 0:00:22]} 32. Rd1 {[%emt 0:01:21]} a6 {[%emt 0:02:40]} 33. a4 {[%emt 0:00:18]} a5 {[%emt 0:01:44]} 34. Rfd2 {[%emt 0:03:38]} f5 {[%emt 0:06:45]} 35. exf5 {[%emt 0:00:29]} Rxf5 {[%emt 0:00:08]} 36. Nd5 {[%emt 0:00:10]} Rdf8 {[%emt 0:00:34]} 37. e4 {[%emt 0:01:17]} R5f7 {[%emt 0:00:14]} 38. Qe3 Rb8 {[%emt 0:00:35]} 39. Nc3 {[%emt 0:02:17]} Rf4 {[%emt 0:00:22]} 40. Rxd6 {[%emt 0:01:33]} Qa8 {[%emt 0:03:10]} 41. Nd5 {[%emt 0:32:24]} Rf7 {[%emt 0:00:47]} 42. Qg3 {[%emt 0:00:00]} 1-0

[Event "13th Dolomiti-Forni di Sopra-A 2022"]
[Site "Forni di Sopra"]
[Date "2022.06.19"]
[Round "9.12"]
[White "Goh, Zi Han"]
[Black "Candian, Lorenzo"]
[Result "1-0"]
[ECO "D86"]
[WhiteElo "2087"]
[BlackElo "2048"]
[Annotator "NA RC"]
[PlyCount "71"]
[EventDate "2022.06.13"]
[EventType "swiss"]
[EventCountry "ITA"]
[SourceTitle "playchess.com"]
[Source "ChessBase"]
[SourceQuality "1"]
[TimeControl "40/5400+30:1800+30"]

1. d4 {[%emt 0:01:06]} Nf6 {[%emt 0:00:32]} 2. c4 {[%emt 0:00:17]} g6 {[%emt 0:00:15]} 3. Nc3 {[%emt 0:00:39]} d5 {[%emt 0:00:09]} 4. cxd5 {[%emt 0:00:21]} Nxd5 {[%emt 0:00:07]} 5. e4 {[%emt 0:00:10]} Nxc3 {[%emt 0:00:06]} 6. bxc3 {[%emt 0:00:04]} Bg7 {[%emt 0:00:10]} 7. Bc4 {[%emt 0:00:14]} O-O {[%emt 0:00:31]} 8. Ne2 {[%emt 0:00:19]} Nc6 {[%emt 0:00:16]} 9. O-O {[%emt 0:07:21]} b6 {[%emt 0:00:21]} 10. Be3 {[%emt 0:01:27]} Bb7 11. Qd2 {[%emt 0:04:51]} Qd6 12. f4 {[%emt 0:08:32]} Na5 {[%emt 0:00:49]} 13. Bd3 {[%emt 0:00:07]} c5 {[%emt 0:00:07]} 14. f5 {[%emt 0:07:06]} cxd4 {[%emt 0:00:46]} 15. cxd4 {[%emt 0:00:12]} Rac8 {[%emt 0:00:06]} 16. Rac1 {[%emt 0:04:06]} Rfd8 17. Rxc8 {[%emt 0:05:09]} Rxc8 {[%emt 0:02:59]} 18. e5 {[%emt 0:04:13]} Qc6 {[%emt 0:01:11]} 19. Nf4 {[%emt 0:09:58]} Nc4 {[%emt 0:00:51]} 20. d5 {[%emt 0:05:54]} Qa4 {[%emt 0:07:14]} 21. Bxc4 Qxc4 {[%emt 0:08:34]} 22. e6 {[%emt 0:05:32]} fxe6 {[%emt 0:02:10]} 23. fxg6 {[%emt 0:02:44]} exd5 {[%emt 0:04:13]} 24. gxh7+ {[%emt 0:00:50]} Kxh7 {[%emt 0:00:24]} 25. Qf2 {[%emt 0:09:53]} Qe4 {[%emt 0:02:31]} 26. Nh3 {[%emt 0:01:53]} Bf6 {[%emt 0:01:06]} 27. Ng5+ {[%emt 0:00:58]} Bxg5 {[%emt 0:00:02]} 28. Bxg5 {[%emt 0:00:06]} d4 {[%emt 0:02:27]} 29. Re1 {[%emt 0:03:45]} Qd5 {[%emt 0:01:20]} 30. Rxe7+ {[%emt 0:00:40]} Kg8 {[%emt 0:00:01]} 31. Bh6 {[%emt 0:02:39]} Qxg2+ {[%emt 0:03:50]} 32. Qxg2+ {[%emt 0:00:05]} Bxg2 {[%emt 0:00:03]} 33. Rg7+ {[%emt 0:00:46]} Kh8 34. Rxg2 {[%emt 0:00:12]} d3 35. Kf1 {[%emt 0:03:49]} Kh7 {[%emt 0:00:18]} 36. Be3 {[%emt 0:12:32]} 1-0